[Event "Titled Tuesday Blitz December 20 Late 2022"]
[White "UnknownMagician"]
[Black "Paravyan, David"]
[BlackFideId "4194985"]
[WhiteElo "2628"]
[BlackElo "2551"]
[Result "1/2-1/2"]
[Round "02"]
[TimeControl "180+1"]
[Date "2022.12.21"]
[WhiteClock "0:00:29"]
[BlackClock "0:00:15"]

1. c4 {[%clk 0:03:00]}  Nf6 {[%clk 0:02:58]} 2. Nf3 {[%clk 0:02:58]}  g6 {[%clk 0:02:58]} 3. g3 {[%clk 0:02:58]}  Bg7 {[%clk 0:02:57]} 4. Bg2 {[%clk 0:02:57]}  c6 {[%clk 0:02:57]} 5. O-O {[%clk 0:02:57]}  d5 {[%clk 0:02:57]} 6. cxd5 {[%clk 0:02:56]}  cxd5 {[%clk 0:02:57]} 7. d4 {[%clk 0:02:55]}  O-O {[%clk 0:02:56]} 8. Ne5 {[%clk 0:02:55]}  Nc6 {[%clk 0:02:54]} 9. Nxc6 {[%clk 0:02:54]}  bxc6 {[%clk 0:02:55]} 10. Nc3 {[%clk 0:02:54]}  h5 {[%clk 0:02:54]} 11. Bg5 {[%clk 0:02:51]}  Nh7 {[%clk 0:02:52]} 12. Bf4 {[%clk 0:02:48]}  h4 {[%clk 0:02:52]} 13. Rc1 {[%clk 0:02:47]}  h3 {[%clk 0:02:50]} 14. Bh1 {[%clk 0:02:44]}  Bf5 {[%clk 0:02:40]} 15. Na4 {[%clk 0:02:39]}  Rc8 {[%clk 0:02:39]} 16. Nc5 {[%clk 0:02:29]}  Re8 {[%clk 0:02:37]} 17. Qd2 {[%clk 0:02:21]}  Nf6 {[%clk 0:02:28]} 18. Bh6 {[%clk 0:02:17]}  Qd6 {[%clk 0:02:12]} 19. Bxg7 {[%clk 0:02:15]}  Kxg7 {[%clk 0:02:11]} 20. f3 {[%clk 0:01:57]}  e5 {[%clk 0:00:40]} 21. e3 {[%clk 0:01:52]}  exd4 {[%clk 0:00:37]} 22. exd4 {[%clk 0:01:53]}  Re7 {[%clk 0:00:34]} 23. g4 {[%clk 0:01:51]}  Bd7 {[%clk 0:00:34]} 24. Rfe1 {[%clk 0:01:43]}  Rce8 {[%clk 0:00:34]} 25. Nd3 {[%clk 0:01:32]}  Qb8 {[%clk 0:00:30]} 26. b3 {[%clk 0:01:25]}  Qb6 {[%clk 0:00:27]} 27. Nc5 {[%clk 0:01:23]}  Bc8 {[%clk 0:00:27]} 28. Kf2 {[%clk 0:01:12]}  Nd7 {[%clk 0:00:25]} 29. Rxe7 {[%clk 0:01:08]}  Rxe7 {[%clk 0:00:25]} 30. Kg3 {[%clk 0:01:01]}  Nxc5 {[%clk 0:00:23]} 31. Rxc5 {[%clk 0:01:00]}  Ba6 {[%clk 0:00:20]} 32. Kxh3 {[%clk 0:00:38]}  Qb8 {[%clk 0:00:20]} 33. Bg2 {[%clk 0:00:35]}  Re2 {[%clk 0:00:18]} 34. Qc1 {[%clk 0:00:33]}  Bb7 {[%clk 0:00:15]} 35. Rc2 {[%clk 0:00:31]}  Qe8 {[%clk 0:00:15]} 36. Kg3 {[%clk 0:00:29]}  Qb8+ {[%clk 0:00:15]} 37. Kh3 {[%clk 0:00:29]}  Qh8+ {[%clk 0:00:15]} 38. Kg3 {[%clk 0:00:29]}  Qb8+ {[%clk 0:00:15]} 39. Kh3 {[%clk 0:00:29]} 1/2-1/2


[Site "https://www.chess.com"]

[Event "Titled Tuesday Blitz December 20 Late 2022"]
[White "Van Foreest, Jorden"]
[Black "Sammed Jaykumar, Shete"]
[WhiteFideId "1039784"]
[BlackFideId "5073421"]
[WhiteElo "2663"]
[BlackElo "2278"]
[Result "1-0"]
[Round "02"]
[TimeControl "180+1"]
[Date "2022.12.20"]
[WhiteClock "0:02:09"]
[BlackClock "0:01:03"]

1. e4 {[%clk 0:03:00]}  c5 {[%clk 0:02:51]} 2. Nf3 {[%clk 0:03:01]}  d6 {[%clk 0:02:48]} 3. d4 {[%clk 0:03:00]}  cxd4 {[%clk 0:02:47]} 4. Nxd4 {[%clk 0:03:01]}  Nf6 {[%clk 0:02:47]} 5. Nc3 {[%clk 0:03:02]}  a6 {[%clk 0:02:45]} 6. Bd2 {[%clk 0:03:02]}  Nc6 {[%clk 0:02:41]} 7. Nxc6 {[%clk 0:03:02]}  bxc6 {[%clk 0:02:40]} 8. Bd3 {[%clk 0:03:03]}  e5 {[%clk 0:02:39]} 9. O-O {[%clk 0:03:03]}  Be7 {[%clk 0:02:40]} 10. Kh1 {[%clk 0:02:52]}  O-O {[%clk 0:02:38]} 11. Qe2 {[%clk 0:02:50]}  Re8 {[%clk 0:02:20]} 12. Rad1 {[%clk 0:02:48]}  d5 {[%clk 0:01:51]} 13. exd5 {[%clk 0:02:46]}  cxd5 {[%clk 0:01:50]} 14. Qxe5 {[%clk 0:02:42]}  Bd6 {[%clk 0:01:45]} 15. Qd4 {[%clk 0:02:28]}  Ng4 {[%clk 0:01:40]} 16. Bf4 {[%clk 0:02:26]}  Bf8 {[%clk 0:01:19]} 17. Qxd5 {[%clk 0:02:16]}  Qh4 {[%clk 0:01:03]} 18. Qxa8 {[%clk 0:02:09]} 1-0


[Site "https://www.chess.com"]

[Event "Titled Tuesday Blitz December 20 Late 2022"]
[White "Veiga, Jose Francisco R P Neves"]
[Black "Makridis, Dimitrios"]
[WhiteFideId "1930087"]
[BlackFideId "25864475"]
[WhiteElo "2320"]
[BlackElo "2272"]
[Result "0-1"]
[Round "02"]
[TimeControl "180+1"]
[Date "2022.12.21"]
[WhiteClock "0:02:06"]
[BlackClock "0:01:11"]

1. Nf3 {[%clk 0:02:59]}  d5 {[%clk 0:02:57]} 2. e3 {[%clk 0:02:59]}  Nf6 {[%clk 0:02:33]} 3. c4 {[%clk 0:02:58]}  g6 {[%clk 0:02:34]} 4. cxd5 {[%clk 0:02:58]}  Nxd5 {[%clk 0:02:34]} 5. Nc3 {[%clk 0:02:59]}  Bg7 {[%clk 0:02:34]} 6. d4 {[%clk 0:02:59]}  O-O {[%clk 0:02:34]} 7. e4 {[%clk 0:02:59]}  Nxc3 {[%clk 0:02:34]} 8. bxc3 {[%clk 0:03:00]}  c5 {[%clk 0:02:35]} 9. Be3 {[%clk 0:02:56]}  Nc6 {[%clk 0:02:34]} 10. Rc1 {[%clk 0:02:53]}  Qa5 {[%clk 0:02:29]} 11. d5 {[%clk 0:02:54]}  Ne5 {[%clk 0:02:24]} 12. Nxe5 {[%clk 0:02:53]}  Bxe5 {[%clk 0:02:25]} 13. Qd2 {[%clk 0:02:52]}  e6 {[%clk 0:02:25]} 14. c4 {[%clk 0:02:52]}  Qc7 {[%clk 0:02:17]} 15. f4 {[%clk 0:02:51]}  Bg7 {[%clk 0:02:03]} 16. e5 {[%clk 0:02:48]}  b6 {[%clk 0:02:01]} 17. Be2 {[%clk 0:02:46]}  Bb7 {[%clk 0:02:00]} 18. Bf3 {[%clk 0:02:47]}  Rad8 {[%clk 0:02:00]} 19. d6 {[%clk 0:02:46]}  Qb8 {[%clk 0:01:59]} 20. O-O {[%clk 0:02:44]}  Bxf3 {[%clk 0:01:50]} 21. Rxf3 {[%clk 0:02:45]}  f6 {[%clk 0:01:51]} 22. exf6 {[%clk 0:02:23]}  Bxf6 {[%clk 0:01:46]} 23. Rd1 {[%clk 0:02:22]}  Bd4 {[%clk 0:01:28]} 24. Bxd4 {[%clk 0:02:11]}  Rxd6 {[%clk 0:01:27]} 25. Be5 {[%clk 0:02:06]}  Rxd2 {[%clk 0:01:27]} 26. Rxd2 {[%clk 0:02:07]}  Qb7 {[%clk 0:01:15]} 27. Rfd3 {[%clk 0:02:07]}  Qe4 {[%clk 0:01:12]} 28. Rd7 {[%clk 0:02:06]}  Qe1# {[%clk 0:01:11]} 0-1


[Site "https://www.chess.com"]

[Event "Titled Tuesday Blitz December 20 Late 2022"]
[White "Vetoshko, Volodymyr"]
[Black "Huber, Benedikt"]
[WhiteFideId "14122480"]
[BlackFideId "12923583"]
[WhiteElo "2422"]
[BlackElo "2199"]
[Result "1-0"]
[Round "02"]
[TimeControl "180+1"]
[Date "2022.12.21"]
[WhiteClock "0:00:03"]
[BlackClock "0:00:27"]

1. d4 {[%clk 0:03:00]}  e6 {[%clk 0:02:55]} 2. c4 {[%clk 0:03:00]}  f5 {[%clk 0:02:46]} 3. g3 {[%clk 0:02:56]}  Nf6 {[%clk 0:02:46]} 4. Bg2 {[%clk 0:02:57]}  Be7 {[%clk 0:02:47]} 5. Nh3 {[%clk 0:02:57]}  O-O {[%clk 0:02:47]} 6. O-O {[%clk 0:02:57]}  d6 {[%clk 0:02:48]} 7. Nf4 {[%clk 0:02:45]}  c6 {[%clk 0:02:47]} 8. Nd3 {[%clk 0:02:16]}  Qc7 {[%clk 0:02:45]} 9. Nc3 {[%clk 0:02:06]}  e5 {[%clk 0:02:44]} 10. d5 {[%clk 0:01:58]}  c5 {[%clk 0:02:05]} 11. b3 {[%clk 0:01:28]}  Bd8 {[%clk 0:02:01]} 12. Bb2 {[%clk 0:01:23]}  Qf7 {[%clk 0:02:01]} 13. Nb5 {[%clk 0:01:11]}  Ne8 {[%clk 0:01:56]} 14. Rc1 {[%clk 0:00:42]}  a6 {[%clk 0:01:55]} 15. Nc3 {[%clk 0:00:42]}  Nd7 {[%clk 0:01:39]} 16. a3 {[%clk 0:00:42]}  e4 {[%clk 0:01:31]} 17. Nf4 {[%clk 0:00:41]}  Ne5 {[%clk 0:01:31]} 18. f3 {[%clk 0:00:32]}  exf3 {[%clk 0:01:19]} 19. exf3 {[%clk 0:00:33]}  Bg5 {[%clk 0:01:19]} 20. Nce2 {[%clk 0:00:28]}  Nf6 {[%clk 0:01:15]} 21. Rc2 {[%clk 0:00:22]}  b5 {[%clk 0:01:10]} 22. Ne6 {[%clk 0:00:17]}  Bxe6 {[%clk 0:01:06]} 23. dxe6 {[%clk 0:00:18]}  Be3+ {[%clk 0:01:04]} 24. Kh1 {[%clk 0:00:18]}  Qxe6 {[%clk 0:01:04]} 25. f4 {[%clk 0:00:17]}  Neg4 {[%clk 0:01:01]} 26. Bxf6 {[%clk 0:00:12]}  gxf6 {[%clk 0:00:53]} 27. Bd5 {[%clk 0:00:11]}  Rfe8 {[%clk 0:00:44]} 28. Bxe6+ {[%clk 0:00:10]}  Rxe6 {[%clk 0:00:45]} 29. Qd5 {[%clk 0:00:10]}  Re8 {[%clk 0:00:45]} 30. Qxf5 {[%clk 0:00:10]}  Nf2+ {[%clk 0:00:44]} 31. Kg2 {[%clk 0:00:09]}  Ne4 {[%clk 0:00:38]} 32. Nc3 {[%clk 0:00:05]}  Nd2 {[%clk 0:00:28]} 33. Nd5 {[%clk 0:00:04]}  Bd4 {[%clk 0:00:27]} 34. Rxd2 {[%clk 0:00:03]} 1-0


[Site "https://www.chess.com"]

[Event "Titled Tuesday Blitz December 20 Late 2022"]
[White "Yedidia, Daniel"]
[Black "Zakhartsov, Vladimir"]
[WhiteFideId "30905907"]
[BlackFideId "4145097"]
[WhiteElo "2570"]
[BlackElo "2535"]
[Result "0-1"]
[Round "02"]
[TimeControl "180+1"]
[Date "2022.12.20"]
[WhiteClock "0:00:15"]
[BlackClock "0:01:07"]

1. d4 {[%clk 0:03:00]}  Nf6 {[%clk 0:02:59]} 2. c4 {[%clk 0:03:01]}  e6 {[%clk 0:02:59]} 3. Nc3 {[%clk 0:03:01]}  d5 {[%clk 0:02:59]} 4. cxd5 {[%clk 0:03:01]}  Nxd5 {[%clk 0:02:58]} 5. e4 {[%clk 0:03:01]}  Nxc3 {[%clk 0:02:59]} 6. bxc3 {[%clk 0:03:02]}  c5 {[%clk 0:02:59]} 7. Rb1 {[%clk 0:03:03]}  cxd4 {[%clk 0:02:57]} 8. cxd4 {[%clk 0:03:04]}  Nc6 {[%clk 0:02:57]} 9. d5 {[%clk 0:02:51]}  exd5 {[%clk 0:02:46]} 10. exd5 {[%clk 0:02:51]}  Bb4+ {[%clk 0:02:38]} 11. Bd2 {[%clk 0:02:16]}  Bxd2+ {[%clk 0:02:34]} 12. Qxd2 {[%clk 0:02:16]}  Ne7 {[%clk 0:02:34]} 13. Bb5+ {[%clk 0:01:59]}  Bd7 {[%clk 0:02:22]} 14. d6 {[%clk 0:01:55]}  Nc6 {[%clk 0:02:11]} 15. Qe3+ {[%clk 0:01:44]}  Be6 {[%clk 0:02:07]} 16. Bxc6+ {[%clk 0:01:42]}  bxc6 {[%clk 0:02:07]} 17. Rd1 {[%clk 0:01:40]}  Qa5+ {[%clk 0:02:01]} 18. Qd2 {[%clk 0:01:14]}  Qxd2+ {[%clk 0:01:59]} 19. Rxd2 {[%clk 0:01:15]}  Rb8 {[%clk 0:01:56]} 20. Nf3 {[%clk 0:00:53]}  Rb1+ {[%clk 0:01:53]} 21. Rd1 {[%clk 0:00:53]}  Rxd1+ {[%clk 0:01:54]} 22. Kxd1 {[%clk 0:00:54]}  Kd7 {[%clk 0:01:54]} 23. a3 {[%clk 0:00:50]}  Kxd6 {[%clk 0:01:42]} 24. Kc2 {[%clk 0:00:48]}  Bd5 {[%clk 0:01:37]} 25. Rd1 {[%clk 0:00:37]}  Re8 {[%clk 0:01:32]} 26. Nd4 {[%clk 0:00:34]}  g6 {[%clk 0:01:25]} 27. Rd2 {[%clk 0:00:23]}  Bxg2 {[%clk 0:01:09]} 28. Nb5+ {[%clk 0:00:18]}  Kc5 {[%clk 0:01:09]} 29. Nxa7 {[%clk 0:00:18]}  Kb6 {[%clk 0:01:08]} 30. Rd7 {[%clk 0:00:18]}  Ra8 {[%clk 0:01:08]} 31. Rxf7 {[%clk 0:00:15]}  Rxa7 {[%clk 0:01:07]} 0-1


[Site "https://www.chess.com"]

[Event "Titled Tuesday Blitz December 20 Late 2022"]
[White "Yeritsyan, Hayk"]
[Black "Akrakan"]
[WhiteFideId "13307320"]
[WhiteElo "2426"]
[BlackElo "2093"]
[Result "0-1"]
[Round "02"]
[TimeControl "180+1"]
[Date "2022.12.21"]
[WhiteClock "0:00:02"]
[BlackClock "0:00:16"]

1. d4 {[%clk 0:03:00]}  d5 {[%clk 0:02:59]} 2. Nf3 {[%clk 0:03:01]}  Nf6 {[%clk 0:02:59]} 3. e3 {[%clk 0:03:01]}  e6 {[%clk 0:03:00]} 4. Bd3 {[%clk 0:03:01]}  Bd6 {[%clk 0:03:00]} 5. Nbd2 {[%clk 0:03:01]}  c5 {[%clk 0:03:00]} 6. c3 {[%clk 0:03:01]}  Nc6 {[%clk 0:03:00]} 7. Qe2 {[%clk 0:03:01]}  Qc7 {[%clk 0:03:00]} 8. O-O {[%clk 0:03:01]}  O-O {[%clk 0:03:00]} 9. Re1 {[%clk 0:03:02]}  e5 {[%clk 0:02:55]} 10. dxc5 {[%clk 0:03:01]}  Bxc5 {[%clk 0:02:54]} 11. e4 {[%clk 0:03:02]}  d4 {[%clk 0:02:51]} 12. Nb3 {[%clk 0:03:02]}  Bb6 {[%clk 0:02:44]} 13. cxd4 {[%clk 0:03:02]}  exd4 {[%clk 0:02:43]} 14. h3 {[%clk 0:03:02]}  Rd8 {[%clk 0:02:41]} 15. e5 {[%clk 0:03:02]}  Nd5 {[%clk 0:02:31]} 16. Qe4 {[%clk 0:03:02]}  g6 {[%clk 0:02:31]} 17. Qh4 {[%clk 0:03:00]}  Nce7 {[%clk 0:02:17]} 18. Ng5 {[%clk 0:02:52]}  h5 {[%clk 0:02:12]} 19. Bd2 {[%clk 0:02:45]}  Nf5 {[%clk 0:02:10]} 20. Bxf5 {[%clk 0:02:32]}  Bxf5 {[%clk 0:02:10]} 21. g4 {[%clk 0:02:32]}  Be6 {[%clk 0:01:42]} 22. gxh5 {[%clk 0:02:24]}  Qc2 {[%clk 0:01:33]} 23. Re4 {[%clk 0:01:57]}  Bf5 {[%clk 0:01:27]} 24. hxg6 {[%clk 0:01:51]}  Bxg6 {[%clk 0:01:24]} 25. Rg4 {[%clk 0:01:26]}  Ne3 {[%clk 0:01:24]} 26. fxe3 {[%clk 0:00:38]}  dxe3 {[%clk 0:01:24]} 27. Be1 {[%clk 0:00:39]}  e2+ {[%clk 0:01:09]} 28. Kh2 {[%clk 0:00:30]}  Rd1 {[%clk 0:01:06]} 29. Nxf7 {[%clk 0:00:20]}  Kxf7 {[%clk 0:00:59]} 30. Qf6+ {[%clk 0:00:19]}  Ke8 {[%clk 0:00:55]} 31. Rxg6 {[%clk 0:00:19]}  Qxg6 {[%clk 0:00:32]} 32. Qxg6+ {[%clk 0:00:19]}  Kd7 {[%clk 0:00:32]} 33. Qd6+ {[%clk 0:00:18]}  Rxd6 {[%clk 0:00:30]} 34. exd6 {[%clk 0:00:18]}  Rf8 {[%clk 0:00:27]} 35. Kg2 {[%clk 0:00:16]}  Rf1 {[%clk 0:00:26]} 36. Nd2 {[%clk 0:00:16]}  Rf6 {[%clk 0:00:25]} 37. Nf3 {[%clk 0:00:16]}  Rxd6 {[%clk 0:00:24]} 38. Bg3 {[%clk 0:00:16]}  Rd1 {[%clk 0:00:24]} 39. Ne5+ {[%clk 0:00:15]}  Ke8 {[%clk 0:00:22]} 40. Kf3 {[%clk 0:00:13]}  Rxa1 {[%clk 0:00:22]} 41. Kxe2 {[%clk 0:00:13]}  Rxa2 {[%clk 0:00:22]} 42. Nd3 {[%clk 0:00:13]}  Ra5 {[%clk 0:00:19]} 43. Kf3 {[%clk 0:00:12]}  Rh5 {[%clk 0:00:19]} 44. Kg4 {[%clk 0:00:12]}  Rd5 {[%clk 0:00:19]} 45. Nf4 {[%clk 0:00:10]}  Rb5 {[%clk 0:00:20]} 46. h4 {[%clk 0:00:08]}  Rxb2 {[%clk 0:00:20]} 47. h5 {[%clk 0:00:09]}  Rb4 {[%clk 0:00:19]} 48. h6 {[%clk 0:00:09]}  Kf7 {[%clk 0:00:20]} 49. Kf5 {[%clk 0:00:08]}  Rb5+ {[%clk 0:00:20]} 50. Kg4 {[%clk 0:00:08]}  Bd4 {[%clk 0:00:18]} 51. Bh4 {[%clk 0:00:06]}  Bh8 {[%clk 0:00:18]} 52. Bg5 {[%clk 0:00:06]}  Rb4 {[%clk 0:00:17]} 53. Kf5 {[%clk 0:00:06]}  Rb5+ {[%clk 0:00:17]} 54. Kg4 {[%clk 0:00:06]}  a5 {[%clk 0:00:18]} 55. Nd3 {[%clk 0:00:03]}  a4 {[%clk 0:00:18]} 56. Bf4 {[%clk 0:00:02]}  a3 {[%clk 0:00:18]} 57. Be5 {[%clk 0:00:01]}  Rxe5 {[%clk 0:00:17]} 58. h7 {[%clk 0:00:01]}  Ra5 {[%clk 0:00:16]} 59. Nf4 {[%clk 0:00:02]}  a2 {[%clk 0:00:16]} 0-1


[Site "https://www.chess.com"]

[Event "Titled Tuesday Blitz December 20 Late 2022"]
[White "Zeman, Matyas"]
[Black "Smith, Garrett L"]
[WhiteFideId "364398"]
[BlackFideId "2024829"]
[WhiteElo "2254"]
[BlackElo "2217"]
[Result "1-0"]
[Round "02"]
[TimeControl "180+1"]
[Date "2022.12.21"]
[WhiteClock "0:00:38"]
[BlackClock "0:00:18"]

1. d4 {[%clk 0:03:00]}  Nf6 {[%clk 0:02:57]} 2. Bg5 {[%clk 0:02:59]}  d5 {[%clk 0:02:57]} 3. Nd2 {[%clk 0:02:57]}  c5 {[%clk 0:02:54]} 4. e3 {[%clk 0:02:57]}  Nc6 {[%clk 0:02:53]} 5. c3 {[%clk 0:02:56]}  e6 {[%clk 0:02:53]} 6. Ngf3 {[%clk 0:02:56]}  Bd7 {[%clk 0:02:52]} 7. Bd3 {[%clk 0:02:57]}  h6 {[%clk 0:02:51]} 8. Bh4 {[%clk 0:02:56]}  Bd6 {[%clk 0:02:48]} 9. Qe2 {[%clk 0:02:54]}  g5 {[%clk 0:02:33]} 10. Bg3 {[%clk 0:02:54]}  Bxg3 {[%clk 0:02:27]} 11. hxg3 {[%clk 0:02:55]}  g4 {[%clk 0:02:10]} 12. Ne5 {[%clk 0:02:53]}  cxd4 {[%clk 0:01:45]} 13. exd4 {[%clk 0:02:50]}  Qb6 {[%clk 0:01:42]} 14. O-O-O {[%clk 0:02:46]}  h5 {[%clk 0:01:34]} 15. Nxg4 {[%clk 0:02:06]}  Nxg4 {[%clk 0:01:25]} 16. Qxg4 {[%clk 0:02:06]}  hxg4 {[%clk 0:01:19]} 17. Rxh8+ {[%clk 0:02:07]}  Ke7 {[%clk 0:01:19]} 18. Rxa8 {[%clk 0:02:08]}  Qc7 {[%clk 0:00:50]} 19. Rg8 {[%clk 0:02:06]}  Nxd4 {[%clk 0:00:50]} 20. Rxg4 {[%clk 0:02:02]}  Nb5 {[%clk 0:00:44]} 21. Nb3 {[%clk 0:01:42]}  a5 {[%clk 0:00:35]} 22. Bxb5 {[%clk 0:01:38]}  Bxb5 {[%clk 0:00:35]} 23. Nd4 {[%clk 0:01:38]}  Be8 {[%clk 0:00:36]} 24. Re1 {[%clk 0:01:35]}  b5 {[%clk 0:00:33]} 25. Rg7 {[%clk 0:01:18]}  Kf6 {[%clk 0:00:24]} 26. Rh7 {[%clk 0:01:06]}  e5 {[%clk 0:00:20]} 27. Nf3 {[%clk 0:00:55]}  b4 {[%clk 0:00:20]} 28. Kd2 {[%clk 0:00:39]}  bxc3+ {[%clk 0:00:20]} 29. bxc3 {[%clk 0:00:40]}  Qb6 {[%clk 0:00:18]} 30. Rh6+ {[%clk 0:00:38]} 1-0


[Site "https://www.chess.com"]

[Event "Titled Tuesday Blitz December 20 Late 2022"]
[White "Zhukov, Maksim"]
[Black "Goltsev, Dmitry"]
[WhiteFideId "34181790"]
[BlackFideId "24176710"]
[WhiteElo "1929"]
[BlackElo "2327"]
[Result "1/2-1/2"]
[Round "02"]
[TimeControl "180+1"]
[Date "2022.12.21"]
[WhiteClock "0:00:05"]
[BlackClock "0:00:04"]

1. Nf3 {[%clk 0:03:00]}  d5 {[%clk 0:03:00]} 2. g3 {[%clk 0:03:00]}  c6 {[%clk 0:03:00]} 3. Bg2 {[%clk 0:03:01]}  Nf6 {[%clk 0:03:00]} 4. O-O {[%clk 0:03:01]}  g6 {[%clk 0:03:01]} 5. d3 {[%clk 0:03:00]}  Bg7 {[%clk 0:03:02]} 6. Nbd2 {[%clk 0:03:00]}  O-O {[%clk 0:03:02]} 7. e4 {[%clk 0:03:01]}  dxe4 {[%clk 0:03:03]} 8. Nxe4 {[%clk 0:03:01]}  Nbd7 {[%clk 0:03:02]} 9. c3 {[%clk 0:03:01]}  Qc7 {[%clk 0:03:00]} 10. Nxf6+ {[%clk 0:03:00]}  Nxf6 {[%clk 0:03:01]} 11. d4 {[%clk 0:03:01]}  Bg4 {[%clk 0:02:59]} 12. Bf4 {[%clk 0:03:01]}  Qb6 {[%clk 0:02:59]} 13. Qb3 {[%clk 0:03:01]}  Nd5 {[%clk 0:02:58]} 14. Bd2 {[%clk 0:02:59]}  e6 {[%clk 0:02:54]} 15. h3 {[%clk 0:02:56]}  Bf5 {[%clk 0:02:48]} 16. Rfe1 {[%clk 0:02:53]}  a5 {[%clk 0:02:42]} 17. Qxb6 {[%clk 0:02:44]}  Nxb6 {[%clk 0:02:42]} 18. Bf1 {[%clk 0:02:41]}  h5 {[%clk 0:02:34]} 19. Ne5 {[%clk 0:01:56]}  f6 {[%clk 0:02:21]} 20. Nc4 {[%clk 0:01:52]}  Nd5 {[%clk 0:02:13]} 21. f3 {[%clk 0:01:43]}  e5 {[%clk 0:01:50]} 22. dxe5 {[%clk 0:01:38]}  fxe5 {[%clk 0:01:51]} 23. Nxe5 {[%clk 0:01:28]}  Rae8 {[%clk 0:01:51]} 24. Nc4 {[%clk 0:01:21]}  a4 {[%clk 0:01:48]} 25. Rxe8 {[%clk 0:01:17]}  Rxe8 {[%clk 0:01:49]} 26. Nd6 {[%clk 0:01:17]}  Rd8 {[%clk 0:01:49]} 27. Nxf5 {[%clk 0:01:17]}  gxf5 {[%clk 0:01:49]} 28. Bc4 {[%clk 0:01:12]}  b5 {[%clk 0:01:44]} 29. Bxd5+ {[%clk 0:00:46]}  Rxd5 {[%clk 0:01:45]} 30. Be3 {[%clk 0:00:47]}  a3 {[%clk 0:01:24]} 31. bxa3 {[%clk 0:00:47]}  Rd3 {[%clk 0:01:24]} 32. Kf2 {[%clk 0:00:45]}  Rxc3 {[%clk 0:01:24]} 33. Rc1 {[%clk 0:00:44]}  Rxa3 {[%clk 0:01:15]} 34. Rxc6 {[%clk 0:00:43]}  Rxa2+ {[%clk 0:01:15]} 35. Kg1 {[%clk 0:00:42]}  Ra3 {[%clk 0:01:01]} 36. Kf2 {[%clk 0:00:39]}  Bf8 {[%clk 0:01:01]} 37. Rc8 {[%clk 0:00:27]}  Ra2+ {[%clk 0:01:00]} 38. Kg1 {[%clk 0:00:27]}  Kf7 {[%clk 0:01:01]} 39. Rc7+ {[%clk 0:00:26]}  Ke6 {[%clk 0:01:00]} 40. Rb7 {[%clk 0:00:25]}  b4 {[%clk 0:00:57]} 41. g4 {[%clk 0:00:24]}  fxg4 {[%clk 0:00:41]} 42. fxg4 {[%clk 0:00:24]}  hxg4 {[%clk 0:00:42]} 43. hxg4 {[%clk 0:00:25]}  Kd5 {[%clk 0:00:42]} 44. g5 {[%clk 0:00:25]}  Ke4 {[%clk 0:00:43]} 45. Bf2 {[%clk 0:00:21]}  Bd6 {[%clk 0:00:18]} 46. g6 {[%clk 0:00:21]}  Kf3 {[%clk 0:00:18]} 47. Rf7+ {[%clk 0:00:21]}  Bf4 {[%clk 0:00:18]} 48. Bd4 {[%clk 0:00:05]}  Rg2+ {[%clk 0:00:10]} 49. Kf1 {[%clk 0:00:05]}  Rxg6 {[%clk 0:00:11]} 50. Be5 {[%clk 0:00:04]}  Rg4 {[%clk 0:00:10]} 51. Bxf4 {[%clk 0:00:03]}  b3 {[%clk 0:00:04]} 52. Be5+ {[%clk 0:00:03]}  Ke4 {[%clk 0:00:05]} 53. Ke1 {[%clk 0:00:03]}  Kxe5 {[%clk 0:00:03]} 54. Kd2 {[%clk 0:00:04]}  Rc4 {[%clk 0:00:03]} 55. Rb7 {[%clk 0:00:03]}  Rc2+ {[%clk 0:00:04]} 56. Kd3 {[%clk 0:00:04]}  Rg2 {[%clk 0:00:03]} 57. Rxb3 {[%clk 0:00:04]}  Rg3+ {[%clk 0:00:03]} 58. Kc2 {[%clk 0:00:04]}  Rxb3 {[%clk 0:00:04]} 59. Kxb3 {[%clk 0:00:05]} 1/2-1/2


[Site "https://www.chess.com"]

[Event "Titled Tuesday Blitz December 20 Late 2022"]
[White "aidenzhouu"]
[Black "Bobadilla Viera, Jorge Samuel"]
[BlackFideId "3906353"]
[WhiteElo "2388"]
[BlackElo "2182"]
[Result "1/2-1/2"]
[Round "02"]
[TimeControl "180+1"]
[Date "2022.12.21"]
[WhiteClock "0:00:14"]
[BlackClock "0:00:18"]

1. d4 {[%clk 0:03:00]}  Nf6 {[%clk 0:02:57]} 2. c4 {[%clk 0:03:01]}  e6 {[%clk 0:02:54]} 3. Nf3 {[%clk 0:03:01]}  d5 {[%clk 0:02:55]} 4. g3 {[%clk 0:03:01]}  Bb4+ {[%clk 0:02:54]} 5. Bd2 {[%clk 0:03:01]}  Be7 {[%clk 0:02:53]} 6. Bg2 {[%clk 0:03:02]}  O-O {[%clk 0:02:54]} 7. O-O {[%clk 0:03:02]}  Nbd7 {[%clk 0:02:53]} 8. Qc2 {[%clk 0:03:02]}  Ne4 {[%clk 0:02:54]} 9. Nc3 {[%clk 0:02:57]}  Nxd2 {[%clk 0:02:52]} 10. Nxd2 {[%clk 0:02:58]}  c6 {[%clk 0:02:53]} 11. e4 {[%clk 0:02:56]}  dxe4 {[%clk 0:02:53]} 12. Ndxe4 {[%clk 0:02:55]}  f5 {[%clk 0:02:54]} 13. Nd2 {[%clk 0:02:53]}  e5 {[%clk 0:02:54]} 14. d5 {[%clk 0:02:38]}  e4 {[%clk 0:02:52]} 15. Nb3 {[%clk 0:02:29]}  Ne5 {[%clk 0:02:52]} 16. Rad1 {[%clk 0:02:22]}  Qe8 {[%clk 0:02:50]} 17. d6 {[%clk 0:02:18]}  Bf6 {[%clk 0:02:50]} 18. Rfe1 {[%clk 0:01:50]}  Be6 {[%clk 0:02:43]} 19. Nc5 {[%clk 0:01:44]}  Bxc4 {[%clk 0:02:43]} 20. d7 {[%clk 0:01:36]}  Qe7 {[%clk 0:02:41]} 21. Nxb7 {[%clk 0:01:34]}  Qb4 {[%clk 0:02:24]} 22. Nd6 {[%clk 0:01:19]}  Bd3 {[%clk 0:02:23]} 23. Qb3+ {[%clk 0:01:08]}  Qxb3 {[%clk 0:02:23]} 24. axb3 {[%clk 0:01:09]}  Nxd7 {[%clk 0:02:23]} 25. f3 {[%clk 0:01:06]}  exf3 {[%clk 0:01:42]} 26. Bxf3 {[%clk 0:00:55]}  Bc2 {[%clk 0:01:42]} 27. Rd2 {[%clk 0:00:52]}  Bxb3 {[%clk 0:01:43]} 28. Bxc6 {[%clk 0:00:52]}  Ne5 {[%clk 0:01:09]} 29. Bxa8 {[%clk 0:00:49]}  Rxa8 {[%clk 0:01:09]} 30. Kg2 {[%clk 0:00:40]}  Rd8 {[%clk 0:01:07]} 31. Nd5 {[%clk 0:00:33]}  Bxd5+ {[%clk 0:00:41]} 32. Rxd5 {[%clk 0:00:32]}  Nc4 {[%clk 0:00:39]} 33. Re6 {[%clk 0:00:18]}  a5 {[%clk 0:00:33]} 34. Kh3 {[%clk 0:00:15]}  a4 {[%clk 0:00:32]} 35. Nxc4 {[%clk 0:00:11]}  Rxd5 {[%clk 0:00:31]} 36. Nd6 {[%clk 0:00:11]}  h6 {[%clk 0:00:30]} 37. Re8+ {[%clk 0:00:12]}  Kh7 {[%clk 0:00:30]} 38. Nc4 {[%clk 0:00:11]}  Rd4 {[%clk 0:00:25]} 39. Ne3 {[%clk 0:00:12]}  f4 {[%clk 0:00:21]} 40. Ng4 {[%clk 0:00:12]}  Bd8 {[%clk 0:00:16]} 41. gxf4 {[%clk 0:00:11]}  Bc7 {[%clk 0:00:16]} 42. f5 {[%clk 0:00:11]}  Rd3+ {[%clk 0:00:14]} 43. Kg2 {[%clk 0:00:11]}  Bf4 {[%clk 0:00:13]} 44. Re7 {[%clk 0:00:11]}  Kg8 {[%clk 0:00:13]} 45. Ra7 {[%clk 0:00:11]}  Rb3 {[%clk 0:00:12]} 46. Rxa4 {[%clk 0:00:09]}  Bg5 {[%clk 0:00:13]} 47. h4 {[%clk 0:00:09]}  Rxb2+ {[%clk 0:00:13]} 48. Kh3 {[%clk 0:00:09]}  Rb3+ {[%clk 0:00:14]} 49. Kg2 {[%clk 0:00:09]}  Bxh4 {[%clk 0:00:14]} 50. Nxh6+ {[%clk 0:00:10]}  gxh6 {[%clk 0:00:15]} 51. Rxh4 {[%clk 0:00:11]}  Kg7 {[%clk 0:00:15]} 52. Rg4+ {[%clk 0:00:12]}  Kh7 {[%clk 0:00:15]} 53. Rf4 {[%clk 0:00:11]}  Kg7 {[%clk 0:00:15]} 54. Rf3 {[%clk 0:00:12]}  Rb4 {[%clk 0:00:15]} 55. Kg3 {[%clk 0:00:12]}  Kf6 {[%clk 0:00:15]} 56. Rf4 {[%clk 0:00:13]}  Rb3+ {[%clk 0:00:16]} 57. Kg4 {[%clk 0:00:13]}  Rb5 {[%clk 0:00:17]} 58. Kh5 {[%clk 0:00:13]}  Rxf5+ {[%clk 0:00:17]} 59. Rxf5+ {[%clk 0:00:14]}  Kxf5 {[%clk 0:00:18]} 60. Kxh6 {[%clk 0:00:14]} 1/2-1/2


[Site "https://www.chess.com"]